[Event "European Online Club-ch-G 2021"]
[Site "Online"]
[Date "2021.03.27"]
[Round "9.16"]
[White "Flom, Gabriel"]
[Black "Frank, Adam"]
[Result "1-0"]
[ECO "C58"]
[WhiteElo "2474"]
[BlackElo "2238"]
[Annotator "ChessBase"]
[PlyCount "133"]
[EventDate "2021.03.27"]
[EventType "team-tourn"]
[EventCountry "NET"]
[SourceTitle "playchess.com"]
[Source "ChessBase"]
[SourceQuality "1"]
[TimeControl "900+5"]

1. e4 {[%emt 0:00:00]} e5 {[%emt 0:00:05]} 2. Nf3 {[%emt 0:00:02]} Nc6 {[%emt 0:00:02]} 3. Bc4 {[%emt 0:00:01]} Nf6 {[%emt 0:00:01]} 4. Ng5 {[%emt 0:00:02]} d5 {[%emt 0:00:02]} 5. exd5 {[%emt 0:00:02]} Na5 {[%emt 0:00:01]} 6. Bb5+ {[%emt 0:00:02]} c6 {[%emt 0:00:01]} 7. dxc6 {[%emt 0:00:01]} bxc6 {[%emt 0:00:01]} 8. Bd3 {[%emt 0:00:02]} Nd5 {[%emt 0:00:20]} 9. Nf3 {[%emt 0:00:13]} Bd6 {[%emt 0:00:28]} 10. O-O {[%emt 0:00:02]} O-O {[%emt 0:00:06]} 11. Re1 {[%emt 0:00:02]} Nf4 {[%emt 0:00:22]} 12. Bf1 {[%emt 0:00:02]} c5 {[%emt 0:00:30]} 13. d3 {[%emt 0:00:02]} Bb7 {[%emt 0:00:19]} 14. Nxe5 {[%emt 0:00:16]} Ng6 {[%emt 0:03:24]} 15. Nf3 {[%emt 0:00:24]} Nc6 {[%emt 0:00:13]} 16. Nc3 {[%emt 0:00:02]} Nce5 {[%emt 0:00:31]} 17. Nxe5 {[%emt 0:00:03]} Bxe5 {[%emt 0:00:10]} 18. g3 {[%emt 0:00:10]} Bxc3 {[%emt 0:01:28]} 19. bxc3 {[%emt 0:00:03]} Qd5 {[%emt 0:00:01]} 20. f3 {[%emt 0:00:01]} h5 {[%emt 0:00:01]} 21. Bg2 {[%emt 0:00:04]} Rae8 {[%emt 0:00:08]} 22. Be3 {[%emt 0:00:28]} h4 {[%emt 0:00:07]} 23. c4 {[%emt 0:00:07]} Qc6 {[%emt 0:00:02]} 24. Bf2 {[%emt 0:00:03]} Ne5 {[%emt 0:00:27]} 25. gxh4 {[%emt 0:00:10]} Re6 {[%emt 0:00:30]} 26. Bg3 {[%emt 0:00:09]} Rfe8 {[%emt 0:00:13]} 27. Bxe5 {[%emt 0:00:13]} Rxe5 {[%emt 0:00:01]} 28. Qd2 {[%emt 0:00:11]} Qe6 {[%emt 0:01:16]} 29. Rxe5 {[%emt 0:00:19]} Qxe5 {[%emt 0:00:01]} 30. Rb1 {[%emt 0:00:01]} Qd4+ {[%emt 0:00:08]} 31. Qf2 {[%emt 0:00:03]} Qd7 {[%emt 0:00:14]} 32. Qxc5 {[%emt 0:00:09]} Re2 {[%emt 0:00:21]} 33. Rc1 {[%emt 0:00:52]} Qe6 {[%emt 0:01:49]} 34. Kf1 {[%emt 0:00:04]} Re3 {[%emt 0:01:48]} 35. Kf2 {[%emt 0:00:17]} Re2+ {[%emt 0:00:02]} 36. Kg1 {[%emt 0:00:31]} Rd2 {[%emt 0:01:17]} 37. Rf1 {[%emt 0:00:36]} Rxc2 {[%emt 0:00:19]} 38. Qxa7 {[%emt 0:00:09]} Qe2 {[%emt 0:00:38]} 39. Rf2 {[%emt 0:00:24]} Qd1+ {[%emt 0:00:03]} 40. Bf1 {[%emt 0:00:04]} Rxf2 {[%emt 0:00:20]} 41. Qxf2 {[%emt 0:00:05]} Bxf3 {[%emt 0:00:02]} 42. h3 {[%emt 0:00:05]} Bc6 {[%emt 0:00:11]} 43. d4 {[%emt 0:00:04]} Be4 {[%emt 0:00:15]} 44. Kh2 {[%emt 0:00:04]} f5 {[%emt 0:00:05]} 45. d5 {[%emt 0:00:04]} Kh7 {[%emt 0:00:14]} 46. Bg2 {[%emt 0:00:11]} Bxg2 {[%emt 0:00:04]} 47. Qxf5+ {[%emt 0:00:02]} g6 {[%emt 0:00:04]} 48. Qf7+ {[%emt 0:00:04]} Kh6 {[%emt 0:00:01]} 49. Qf4+ {[%emt 0:00:03]} Kh7 {[%emt 0:00:02]} 50. Kxg2 {[%emt 0:00:02]} Qe2+ {[%emt 0:00:01]} 51. Kg3 {[%emt 0:00:04]} Qd3+ {[%emt 0:00:02]} 52. Kg4 {[%emt 0:00:03]} Qe2+ {[%emt 0:00:01]} 53. Kg5 {[%emt 0:00:01]} Qe7+ {[%emt 0:00:02]} 54. Kg4 {[%emt 0:00:03]} Qe2+ {[%emt 0:00:02]} 55. Kg3 {[%emt 0:00:03]} Qd3+ {[%emt 0:00:01]} 56. Qf3 {[%emt 0:00:02]} Qxc4 {[%emt 0:00:03]} 57. h5 {[%emt 0:00:02]} Qc7+ {[%emt 0:00:07]} 58. Qf4 {[%emt 0:00:12]} Qc3+ {[%emt 0:00:03]} 59. Kg4 {[%emt 0:00:07]} gxh5+ {[%emt 0:00:04]} 60. Kxh5 {[%emt 0:00:09]} Qxh3+ {[%emt 0:00:02]} 61. Kg5 {[%emt 0:00:06]} Qa3 {[%emt 0:00:26]} 62. Qf7+ {[%emt 0:00:12]} Kh8 {[%emt 0:00:02]} 63. Qe8+ {[%emt 0:00:14]} Kg7 {[%emt 0:00:04]} 64. Qe5+ {[%emt 0:00:03]} Kf7 {[%emt 0:00:06]} 65. d6 {[%emt 0:00:17]} Qa7 {[%emt 0:00:22]} 66. Qf6+ {[%emt 0:00:11]} Kg8 {[%emt 0:00:02]} 67. Qd8+ {[%emt 0:00:02]} 1-0

[Event "European Online Club-ch-G 2021"]
[Site "Online"]
[Date "2021.03.27"]
[Round "9.17"]
[White "Flear, Glenn C"]
[Black "Grachev, Boris"]
[Result "1/2-1/2"]
[ECO "D35"]
[WhiteElo "2431"]
[BlackElo "2619"]
[Annotator "ChessBase"]
[PlyCount "85"]
[EventDate "2021.03.27"]
[EventType "team-tourn"]
[EventCountry "NET"]
[SourceTitle "playchess.com"]
[Source "ChessBase"]
[SourceQuality "1"]
[TimeControl "900+5"]

1. d4 {[%emt 0:00:00]} d5 {[%emt 0:00:03]} 2. c4 {[%emt 0:00:05]} e6 {[%emt 0:00:01]} 3. Nc3 {[%emt 0:00:02]} Nf6 {[%emt 0:00:07]} 4. cxd5 {[%emt 0:00:04]} exd5 {[%emt 0:00:02]} 5. Bg5 {[%emt 0:00:03]} c6 {[%emt 0:00:02]} 6. e3 {[%emt 0:00:04]} h6 {[%emt 0:00:03]} 7. Bh4 {[%emt 0:00:05]} Be6 {[%emt 0:00:12]} 8. Bd3 {[%emt 0:00:05]} Nbd7 {[%emt 0:00:03]} 9. Qc2 {[%emt 0:00:09]} g5 {[%emt 0:00:09]} 10. Bg3 {[%emt 0:00:03]} Nh5 {[%emt 0:00:01]} 11. Nge2 {[%emt 0:00:40]} Nxg3 {[%emt 0:00:03]} 12. Nxg3 {[%emt 0:00:14]} h5 {[%emt 0:00:02]} 13. O-O-O {[%emt 0:00:10]} h4 {[%emt 0:00:06]} 14. Nf5 {[%emt 0:00:04]} Qf6 {[%emt 0:00:29]} 15. Kb1 {[%emt 0:01:09]} Nb6 {[%emt 0:00:36]} 16. g4 {[%emt 0:00:18]} O-O-O {[%emt 0:00:20]} 17. h3 {[%emt 0:00:08]} Kb8 {[%emt 0:00:13]} 18. Rhe1 {[%emt 0:00:45]} Bb4 {[%emt 0:00:41]} 19. Re2 {[%emt 0:00:14]} Bxf5 {[%emt 0:01:30]} 20. Bxf5 {[%emt 0:00:13]} Rhe8 {[%emt 0:00:10]} 21. Na4 {[%emt 0:02:55]} Bd6 {[%emt 0:01:30]} 22. Nxb6 {[%emt 0:00:48]} axb6 {[%emt 0:00:02]} 23. e4 {[%emt 0:00:03]} dxe4 {[%emt 0:00:07]} 24. Rxe4 {[%emt 0:00:05]} Rxe4 {[%emt 0:00:20]} 25. Bxe4 {[%emt 0:01:41]} Bf8 {[%emt 0:00:44]} 26. d5 {[%emt 0:01:30]} Bg7 {[%emt 0:00:09]} 27. Rd3 {[%emt 0:00:46]} cxd5 {[%emt 0:00:39]} 28. Rxd5 {[%emt 0:00:49]} Rxd5 {[%emt 0:00:19]} 29. Bxd5 {[%emt 0:00:03]} Qe5 {[%emt 0:00:05]} 30. Qd2 {[%emt 0:00:39]} Ka7 {[%emt 0:00:36]} 31. a3 {[%emt 0:00:32]} f5 {[%emt 0:01:26]} 32. f3 {[%emt 0:00:23]} Bf6 {[%emt 0:00:28]} 33. Ka2 {[%emt 0:00:26]} fxg4 {[%emt 0:01:11]} 34. fxg4 {[%emt 0:00:05]} Qd4 {[%emt 0:00:04]} 35. Qxd4 {[%emt 0:00:08]} Bxd4 {[%emt 0:00:01]} 36. a4 {[%emt 0:00:04]} Kb8 {[%emt 0:00:13]} 37. Kb3 {[%emt 0:00:09]} Kc7 {[%emt 0:00:02]} 38. Kc2 {[%emt 0:00:03]} Kd6 {[%emt 0:00:36]} 39. Bxb7 {[%emt 0:00:04]} Ke5 {[%emt 0:00:02]} 40. Kd3 {[%emt 0:00:03]} Bc5 {[%emt 0:00:43]} 41. b4 {[%emt 0:00:10]} Bxb4 {[%emt 0:00:06]} 42. Ke3 {[%emt 0:00:03]} Bc5+ {[%emt 0:00:06]} 43. Kf3 {[%emt 0:00:03]} 1/2-1/2

[Event "European Online Club-ch-G 2021"]
[Site "Online"]
[Date "2021.03.27"]
[Round "9.18"]
[White "Motylev, Alexander"]
[Black "Boyer, Mahel"]
[Result "1/2-1/2"]
[ECO "B00"]
[WhiteElo "2641"]
[BlackElo "2333"]
[Annotator "ChessBase"]
[PlyCount "105"]
[EventDate "2021.03.27"]
[EventType "team-tourn"]
[EventCountry "NET"]
[SourceTitle "playchess.com"]
[Source "ChessBase"]
[SourceQuality "1"]
[TimeControl "900+5"]

1. e4 {[%emt 0:00:00]} Nc6 {[%emt 0:00:02]} 2. Nf3 {[%emt 0:00:07]} d5 {[%emt 0:00:01]} 3. exd5 {[%emt 0:00:03]} Qxd5 {[%emt 0:00:00]} 4. Nc3 {[%emt 0:00:02]} Qh5 {[%emt 0:00:02]} 5. Nb5 {[%emt 0:00:12]} Kd8 {[%emt 0:00:02]} 6. Nc3 {[%emt 0:00:07]} Bg4 {[%emt 0:00:03]} 7. Be2 {[%emt 0:00:01]} Nf6 {[%emt 0:00:06]} 8. d4 {[%emt 0:00:09]} e6 {[%emt 0:00:03]} 9. Bf4 {[%emt 0:00:22]} Bd6 {[%emt 0:00:05]} 10. Qd2 {[%emt 0:00:20]} Ke7 {[%emt 0:00:28]} 11. h3 {[%emt 0:00:13]} Rhd8 {[%emt 0:00:06]} 12. Bg5 {[%emt 0:01:28]} h6 {[%emt 0:00:54]} 13. Bxf6+ {[%emt 0:00:28]} gxf6 {[%emt 0:00:02]} 14. O-O-O {[%emt 0:00:02]} Bxf3 {[%emt 0:00:04]} 15. Bxf3 {[%emt 0:00:01]} Qg5 {[%emt 0:00:09]} 16. Qxg5 {[%emt 0:03:08]} hxg5 {[%emt 0:00:15]} 17. Ne2 {[%emt 0:00:09]} Rh8 {[%emt 0:00:10]} 18. c3 {[%emt 0:00:13]} Rad8 {[%emt 0:00:05]} 19. b4 {[%emt 0:00:08]} f5 {[%emt 0:00:06]} 20. Kc2 {[%emt 0:00:14]} Kf6 {[%emt 0:00:18]} 21. a4 {[%emt 0:00:49]} Rb8 {[%emt 0:00:48]} 22. Bxc6 {[%emt 0:00:39]} bxc6 {[%emt 0:00:00]} 23. Nc1 {[%emt 0:00:02]} a5 {[%emt 0:01:37]} 24. bxa5 {[%emt 0:00:04]} c5 {[%emt 0:00:01]} 25. dxc5 {[%emt 0:00:23]} Bxc5 {[%emt 0:00:00]} 26. Nd3 {[%emt 0:00:16]} Bd6 {[%emt 0:00:06]} 27. Nb2 {[%emt 0:00:21]} Ra8 {[%emt 0:00:27]} 28. Nc4 {[%emt 0:00:12]} Bc5 {[%emt 0:00:07]} 29. f3 {[%emt 0:00:14]} Rh4 {[%emt 0:00:13]} 30. g4 {[%emt 0:00:02]} Rah8 {[%emt 0:00:16]} 31. Rd7 {[%emt 0:00:08]} Rxh3 {[%emt 0:00:40]} 32. Rxh3 {[%emt 0:00:05]} Rxh3 {[%emt 0:00:00]} 33. Rxc7 {[%emt 0:00:07]} Bg1 {[%emt 0:00:23]} 34. gxf5 {[%emt 0:05:10]} exf5 {[%emt 0:04:44]} 35. a6 {[%emt 0:00:09]} g4 {[%emt 0:00:41]} 36. fxg4 {[%emt 0:00:04]} fxg4 {[%emt 0:00:00]} 37. a7 {[%emt 0:00:16]} Rh8 {[%emt 0:02:49]} 38. Nd6 {[%emt 0:00:22]} Ra8 {[%emt 0:00:30]} 39. Rxf7+ {[%emt 0:00:10]} Ke6 {[%emt 0:00:09]} 40. Rf1 {[%emt 0:00:02]} Bxa7 {[%emt 0:00:22]} 41. Nb5 {[%emt 0:00:01]} Bb6 {[%emt 0:00:37]} 42. Re1+ {[%emt 0:00:09]} Kf6 {[%emt 0:00:19]} 43. Kb3 {[%emt 0:00:27]} Bf2 {[%emt 0:00:35]} 44. Re2 {[%emt 0:00:21]} g3 {[%emt 0:00:03]} 45. Nd6 {[%emt 0:00:07]} Kg6 {[%emt 0:00:10]} 46. Re6+ {[%emt 0:00:21]} Kh5 {[%emt 0:00:03]} 47. Re5+ {[%emt 0:00:06]} Kg4 {[%emt 0:00:02]} 48. Ne4 {[%emt 0:00:04]} Kf4 {[%emt 0:00:04]} 49. Re7 {[%emt 0:00:09]} Rb8+ {[%emt 0:00:09]} 50. Kc2 {[%emt 0:00:02]} Ra8 {[%emt 0:00:04]} 51. Kb3 {[%emt 0:00:09]} Rb8+ {[%emt 0:00:05]} 52. Kc2 {[%emt 0:00:02]} Ra8 {[%emt 0:00:01]} 53. Kb3 {[%emt 0:00:07]} 1/2-1/2

[Event "European Online Club-ch-G 2021"]
[Site "Online"]
[Date "2021.03.27"]
[Round "9.19"]
[White "Hmamouche, Youssef"]
[Black "Kobalia, Mikhail"]
[Result "0-1"]
[ECO "E61"]
[WhiteElo "1926"]
[BlackElo "2587"]
[Annotator "ChessBase"]
[PlyCount "62"]
[EventDate "2021.03.27"]
[EventType "team-tourn"]
[EventCountry "NET"]
[SourceTitle "playchess.com"]
[Source "ChessBase"]
[SourceQuality "1"]
[TimeControl "900+5"]

1. d4 {[%emt 0:00:00]} Nf6 {[%emt 0:00:03]} 2. Nf3 {[%emt 0:00:04]} g6 {[%emt 0:00:03]} 3. c4 {[%emt 0:00:04]} Bg7 {[%emt 0:00:01]} 4. Nc3 {[%emt 0:00:02]} O-O {[%emt 0:00:01]} 5. Bg5 {[%emt 0:00:02]} h6 {[%emt 0:00:30]} 6. Bh4 {[%emt 0:00:03]} d6 {[%emt 0:00:03]} 7. e3 {[%emt 0:00:06]} Nbd7 {[%emt 0:00:09]} 8. Qc2 {[%emt 0:00:05]} c5 {[%emt 0:00:11]} 9. d5 {[%emt 0:00:07]} a6 {[%emt 0:00:18]} 10. a4 {[%emt 0:00:14]} Ng4 {[%emt 0:00:03]} 11. Be2 {[%emt 0:00:11]} Nge5 {[%emt 0:00:07]} 12. Nxe5 {[%emt 0:00:11]} Nxe5 {[%emt 0:00:04]} 13. O-O {[%emt 0:00:05]} g5 {[%emt 0:03:17]} 14. Bg3 {[%emt 0:00:07]} Qe8 {[%emt 0:00:04]} 15. a5 {[%emt 0:01:18]} f5 {[%emt 0:00:43]} 16. f3 {[%emt 0:01:19]} f4 {[%emt 0:00:11]} 17. exf4 {[%emt 0:00:23]} gxf4 {[%emt 0:00:00]} 18. Be1 {[%emt 0:00:12]} Qh5 {[%emt 0:00:12]} 19. Ne4 {[%emt 0:00:22]} Bf5 {[%emt 0:01:06]} 20. Kh1 {[%emt 0:00:56]} Qg6 {[%emt 0:01:40]} 21. Rc1 {[%emt 0:01:02]} h5 {[%emt 0:00:11]} 22. b3 {[%emt 0:00:11]} Kh7 {[%emt 0:00:05]} 23. Bh4 {[%emt 0:00:17]} Rf7 {[%emt 0:00:26]} 24. Qd2 {[%emt 0:00:04]} Bh6 {[%emt 0:00:13]} 25. Rg1 {[%emt 0:00:28]} Bxe4 {[%emt 0:00:05]} 26. fxe4 {[%emt 0:00:41]} f3 {[%emt 0:00:15]} 27. Qe1 {[%emt 0:01:08]} f2 {[%emt 0:00:09]} 28. Bxf2 {[%emt 0:00:07]} Bxc1 {[%emt 0:00:03]} 29. g4 {[%emt 0:00:06]} Qxe4+ {[%emt 0:00:04]} 30. Rg2 {[%emt 0:00:01]} Bd2 {[%emt 0:00:18]} 31. Qf1 {[%emt 0:00:10]} Be3 {[%emt 0:00:05]} 0-1